bitfinex/quotes_BTCUSD_20250221
["timestamp","ask_amount","ask_price","bid_price","bid_amount"]
[1740153092834,0.152917,98093.0,98062.0,0.42521067]
[1740153093104,0.32678775,98101.0,98062.0,0.25770582]
[1740153093105,0.203891,98092.0,98062.0,0.25770582]
[1740153093382,0.32678775,98069.0,98062.0,0.10770582]
[1740153093644,0.32678775,98069.0,98062.0,0.11470582]
[1740153094166,0.32678775,98069.0,98062.0,0.10770582]
[1740153094482,0.32678775,98069.0,98062.0,0.01906013]
[1740153094673,0.32678775,98069.0,98062.0,0.00506013]
[1740153094915,0.32678775,98069.0,98062.0,0.01206013]
[1740153095113,0.32678775,98069.0,98062.0,0.01906013]
[1740153095326,0.32678775,98069.0,98062.0,0.12170582]
[1740153096184,0.1538115,98063.0,98062.0,0.01906013]
[1740153096398,0.64002694,98063.0,98062.0,0.01906013]
[1740153096607,0.152998,98040.0,98038.0,0.0017002]
[1740153096820,0.32678775,98039.0,98038.0,0.0017002]
[1740153097057,0.47678775,98039.0,98038.0,0.0017002]
[1740153097269,1.00983344,98039.0,98038.0,0.00183016]
[1740153097480,1.00983344,98039.0,98038.0,0.00012996]
[1740153097892,0.90718775,98039.0,98038.0,0.00012996]
[1740153098321,0.32678775,98039.0,98038.0,0.00012996]
[1740153098749,0.47978775,98039.0,98038.0,0.00012996]
[1740153099385,0.73243344,98039.0,98038.0,0.00012996]
[1740153100089,0.32678775,98039.0,98038.0,0.00112996]
[1740153101799,0.75718775,98039.0,98038.0,0.00112996]
[1740153102005,0.75718775,98039.0,98038.0,0.00012996]
[1740153102212,1.01283344,98039.0,98038.0,0.00012996]
[1740153102419,1.02737429,98039.0,98038.0,0.00182996]
[1740153102622,1.02737429,98039.0,98038.0,0.00382996]
[1740153102829,0.01454085,98036.0,97981.0,0.1646006]
[1740153103031,0.00765228,98014.0,97985.0,0.00043345]
[1740153103239,0.153076,97991.0,97985.0,0.00043345]
[1740153103447,0.32678775,97990.0,97985.0,0.00043345]
[1740153103662,0.32678775,97990.0,97985.0,0.10307914]
[1740153103890,0.32678775,97990.0,97987.0,0.204108]
[1740153104104,0.32678775,98001.0,97999.0,0.153061]
[1740153104347,0.32678775,98001.0,98000.0,0.10264569]
[1740153104558,0.32678775,98001.0,98000.0,0.15134569]
[1740153104770,0.75718775,98038.0,98000.0,0.35542569]
[1740153104976,0.008,98039.0,98007.0,0.0816006]
[1740153104977,0.75718775,98037.0,98007.0,0.0816006]
[1740153105189,0.75718775,98037.0,98008.0,0.10386987]
[1740153105399,0.75718775,98037.0,98008.0,0.10264569]
[1740153105608,0.153016,98029.0,98008.0,0.10264569]
[1740153105821,0.15301,98033.0,98008.0,0.10264569]
[1740153106035,0.32678775,98032.0,98031.0,0.153012]
[1740153106256,0.32678775,98032.0,98008.0,0.10264569]
[1740153106674,0.32678775,98032.0,98014.0,0.0816006]
[1740153106789,0.32678775,98032.0,98015.0,0.10264569]
[1740153107236,0.32678775,98032.0,98015.0,0.10307914]
[1740153107841,0.32678775,98032.0,98016.0,0.204048]
[1740153108041,0.32678775,98032.0,98028.0,0.153016]
[1740153108307,0.32678775,98032.0,98017.0,0.10264569]
[1740153108526,0.75718775,98051.0,98020.0,0.0816006]
[1740153108728,0.32678775,98051.0,98035.0,0.153006]
[1740153108940,0.32678775,98051.0,98036.0,0.10264569]
[1740153109152,0.152983,98050.0,98036.0,0.10264569]
[1740153109306,0.32678775,98051.0,98036.0,0.10264569]
[1740153109514,0.47976975,98051.0,98036.0,0.10264569]
[1740153109720,0.32678775,98051.0,98049.0,0.152983]
[1740153109929,0.002,98051.0,98050.0,0.10264569]
[1740153110114,0.002,98051.0,98050.0,0.18424629]
[1740153110960,0.00212989,98051.0,98050.0,0.18424629]
[1740153111371,0.00012989,98051.0,98050.0,0.18424629]
[1740153111727,0.00012989,98051.0,98050.0,0.35546989]
[1740153111936,0.00012989,98051.0,98050.0,0.47084584]
[1740153112144,0.00112989,98051.0,98050.0,0.47784584]
[1740153112392,0.00012989,98051.0,98050.0,0.47084584]
[1740153112601,0.00012989,98051.0,98050.0,0.47067523]
[1740153112808,0.00212989,98051.0,98050.0,0.46467523]
[1740153113007,0.00112989,98051.0,98050.0,0.45767523]
[1740153113210,0.00012989,98051.0,98050.0,0.45067523]
[1740153113580,0.00112989,98051.0,98050.0,0.47767523]
[1740153113970,0.00112989,98051.0,98050.0,0.45767523]
[1740153114166,0.00112989,98051.0,98050.0,0.47767523]
[1740153114377,0.00197999,98051.0,98050.0,1.49215686]
[1740153114598,4.9e-07,98063.0,98062.0,0.322964]
[1740153114813,4.9e-07,98063.0,98062.0,0.67069624]
[1740153115870,0.00100049,98063.0,98062.0,0.68469624]
[1740153116276,0.00100049,98063.0,98062.0,0.66469624]
[1740153116899,4.9e-07,98063.0,98062.0,0.65769624]
[1740153117111,4.9e-07,98063.0,98062.0,0.45270969]
[1740153117749,4.9e-07,98063.0,98045.0,0.0458]
[1740153117946,4.9e-07,98063.0,98046.0,0.10264569]
[1740153118246,4.9e-07,98063.0,98062.0,0.007]
[1740153118485,0.00100049,98063.0,98062.0,0.014]
[1740153118824,0.15296249,98063.0,98062.0,0.007]
[1740153119030,0.152965,98062.0,98048.0,0.152985]
[1740153119142,4.9e-07,98063.0,98062.0,0.152964]
[1740153119349,4.9e-07,98063.0,98062.0,0.42015054]
[1740153119549,4.9e-07,98063.0,98062.0,0.46565054]
[1740153119787,4.9e-07,98063.0,98062.0,0.45110969]
[1740153119996,4.9e-07,98063.0,98062.0,0.45410969]
[1740153120202,4.9e-07,98063.0,98062.0,0.47365054]
[1740153120630,4.9e-07,98063.0,98062.0,0.55635054]
[1740153121045,4.9e-07,98063.0,98062.0,0.26064569]
[1740153121243,4.9e-07,98063.0,98062.0,0.008]
[1740153121482,4.9e-07,98063.0,98062.0,0.003]
[1740153121640,4.9e-07,98063.0,98062.0,0.10264569]
[1740153121848,4.9e-07,98063.0,98062.0,0.48978714]
[1740153122051,4.9e-07,98063.0,98062.0,0.58483314]
[1740153122275,4.9e-07,98063.0,98062.0,0.57783314]
[1740153122478,4.9e-07,98063.0,98062.0,0.58383314]
[1740153122746,4.9e-07,98063.0,98062.0,0.49645154]
[1740153123004,4.9e-07,98063.0,98062.0,0.37986469]
[1740153123204,4.9e-07,98063.0,98062.0,0.30246469]
[1740153123408,4.9e-07,98063.0,98062.0,0.11186469]
[1740153123822,4.9e-07,98063.0,98062.0,0.26605227]
[1740153123944,4.9e-07,98063.0,98062.0,0.26482869]
[1740153124348,4.9e-07,98063.0,98062.0,0.42936954]
[1740153124552,4.9e-07,98063.0,98062.0,0.42236954]
[1740153124850,4.9e-07,98063.0,98062.0,0.41536954]
[1740153125174,4.9e-07,98063.0,98062.0,0.55286954]
[1740153125351,0.32678775,98104.0,98088.0,0.302923]
[1740153125510,0.0008516,98105.0,98088.0,0.40556869]
[1740153125719,0.0008516,98105.0,98088.0,0.42010954]
[1740153126747,0.00052993,98089.0,98088.0,0.42510954]
[1740153127161,0.00052993,98089.0,98088.0,0.47230954]
[1740153127584,0.00052993,98089.0,98088.0,0.49230954]
[1740153127841,0.00052993,98089.0,98088.0,0.47930954]
[1740153128145,0.00052993,98089.0,98088.0,0.48730954]
[1740153128566,0.00052993,98089.0,98088.0,0.49430954]
[1740153128716,0.00052993,98089.0,98088.0,0.46730954]
[1740153128928,0.00052993,98089.0,98088.0,0.47430954]
[1740153129122,0.00052993,98089.0,98088.0,0.48130954]
[1740153129326,9.3e-07,98089.0,98088.0,1.58343825]
[1740153129525,0.00075853,98110.0,98109.0,0.302891]
[1740153129712,0.00075853,98110.0,98109.0,0.42007754]
[1740153131939,0.00075853,98110.0,98109.0,0.40553669]
[1740153132136,0.00075853,98110.0,98109.0,1.42701832]
[1740153132364,0.00075853,98110.0,98109.0,1.53601522]
[1740153132604,0.00075853,98110.0,98109.0,1.54355607]
[1740153132934,0.00075853,98110.0,98109.0,0.52907444]
[1740153133127,0.00075853,98110.0,98109.0,0.53607444]
[1740153134300,0.00075853,98110.0,98109.0,0.11664569]
[1740153134501,0.00075853,98110.0,98109.0,0.26253669]
[1740153134705,0.00075853,98110.0,98109.0,0.41253669]
[1740153134845,0.00075853,98110.0,98109.0,0.41953669]
[1740153135312,0.00075853,98110.0,98109.0,0.42707754]
[1740153136383,0.00075853,98110.0,98109.0,0.54207024]
[1740153136590,0.00075853,98110.0,98109.0,0.52907024]
[1740153136797,0.00075853,98110.0,98109.0,1.55810138]
[1740153137004,0.00075853,98110.0,98109.0,1.55055187]
[1740153139626,0.00075853,98110.0,98109.0,1.57055187]
[1740153139826,0.203736,98167.0,98109.0,1.57055187]
[1740153139827,0.0148437,98168.0,98161.0,0.32281]
[1740153140008,0.0148437,98168.0,98167.0,0.02]
[1740153140206,0.0148437,98168.0,98167.0,0.27666771]
[1740153140409,0.01527726,98168.0,98167.0,0.42544569]
[1740153141393,0.01527726,98168.0,98167.0,0.44958335]
[1740153141626,0.01527726,98168.0,98167.0,0.45149088]
[1740153141836,0.01527726,98168.0,98167.0,0.41998654]
[1740153142263,0.01527726,98168.0,98167.0,0.41244569]
[1740153142685,0.01527726,98168.0,98167.0,0.25544569]
[1740153142882,0.01527726,98168.0,98167.0,0.10264569]
[1740153143105,0.01527726,98168.0,98167.0,0.007]
[1740153143513,0.16807626,98168.0,98167.0,0.007]
[1740153143935,0.01527726,98168.0,98167.0,0.014]
[1740153144147,0.01527726,98168.0,98167.0,0.1598]
[1740153144348,0.01527726,98168.0,98165.0,0.152803]
[1740153144544,0.01527726,98168.0,98167.0,0.011]
[1740153144755,0.01527726,98168.0,98167.0,0.10964569]
[1740153144956,0.01527726,98168.0,98167.0,0.11086803]
[1740153145224,0.01527726,98168.0,98167.0,0.11286803]
[1740153145455,0.01527726,98168.0,98167.0,0.10964569]
[1740153145646,0.01527726,98168.0,98158.0,0.55024652]
[1740153145647,0.01527726,98168.0,98143.0,0.0487]
[1740153145799,0.01527726,98168.0,98167.0,0.009]
[1740153146425,0.01527726,98168.0,98167.0,0.26444569]
[1740153146999,0.01527726,98168.0,98167.0,0.11164569]
[1740153147201,0.01527726,98168.0,98167.0,0.005]
[1740153147654,0.01527726,98168.0,98159.0,0.20375]
[1740153147859,0.01527726,98168.0,98154.0,0.15]
[1740153147860,0.01527726,98168.0,98167.0,0.007]
[1740153148412,0.01527726,98168.0,98167.0,0.005]
[1740153148683,0.01527726,98168.0,98167.0,0.006]
[1740153148919,0.01612686,98168.0,98160.0,0.10264569]
[1740153149131,0.01612686,98168.0,98166.0,0.152801]
[1740153149347,0.01612686,98168.0,98167.0,0.11164569]
[1740153149559,0.01612686,98168.0,98167.0,0.112868]
[1740153149767,0.01612686,98168.0,98167.0,0.11164569]
[1740153150812,0.01612686,98168.0,98167.0,0.10664569]
[1740153151022,0.01612686,98168.0,98167.0,0.10264569]
[1740153151226,0.01612686,98168.0,98166.0,0.007]
[1740153151439,0.01612686,98168.0,98166.0,0.10264569]
[1740153151606,0.01612686,98168.0,98167.0,0.007]
[1740153152196,0.01612686,98168.0,98167.0,0.013]
[1740153152396,0.01612686,98168.0,98167.0,0.006]
[1740153152573,0.152807,98163.0,98149.0,0.15]
[1740153152776,0.152807,98163.0,98150.0,0.10264569]
[1740153152992,0.09352686,98168.0,98111.0,0.0753]
[1740153153179,0.01612686,98168.0,98167.0,0.1528]
[1740153153383,0.00128316,98168.0,98167.0,0.2566678]
[1740153153590,0.0318523,98209.0,98195.0,0.302757]
[1740153153782,0.0002,98196.0,98195.0,0.31729785]
[1740153153985,0.0002,98196.0,98195.0,0.41919665]
[1740153154776,0.0002,98196.0,98195.0,0.42319665]
[1740153154990,0.0002,98196.0,98195.0,0.31729785]
[1740153155197,0.0002,98196.0,98195.0,0.309757]
[1740153155572,0.0002,98196.0,98195.0,0.15]
[1740153155793,0.0002,98196.0,98180.0,0.01454085]
[1740153155983,0.0002,98196.0,98195.0,0.007]
[1740153156136,0.0002,98196.0,98195.0,0.26240269]
[1740153156338,0.0002,98196.0,98195.0,0.10964569]
[1740153156950,0.0002,98196.0,98195.0,0.11664569]
[1740153157155,0.0002,98196.0,98195.0,0.10964569]
[1740153157354,0.0002,98196.0,98195.0,0.12364569]
[1740153158026,0.0002,98196.0,98195.0,0.11664569]
[1740153158442,0.0002,98196.0,98195.0,0.10264569]
[1740153158653,0.0002,98196.0,98195.0,0.10964569]
[1740153158830,0.0002,98196.0,98195.0,0.11664569]
[1740153159042,0.0002,98196.0,98195.0,0.10964569]
[1740153159871,0.0002,98196.0,98195.0,0.26240269]
[1740153160074,0.0002,98196.0,98195.0,0.10264569]
[1740153160329,0.0002,98196.0,98195.0,0.10964569]
[1740153160544,0.0002,98196.0,98195.0,0.11664569]
[1740153160747,0.0002,98196.0,98195.0,0.10264569]
[1740153160953,0.0002,98196.0,98195.0,0.10964569]
[1740153161358,0.0002,98196.0,98195.0,0.11664569]
[1740153161569,0.0010491,98196.0,98195.0,0.11664569]
[1740153162186,0.0012503,98209.0,98199.0,0.302751]
[1740153162187,0.8009401,98200.0,98199.0,0.302751]
[1740153162387,0.2868051,98200.0,98199.0,0.41993754]
[1740153162598,0.2868051,98200.0,98199.0,0.57113754]
[1740153162805,0.0228561,98200.0,98199.0,0.57113754]
[1740153163226,0.0228561,98200.0,98199.0,0.59113754]
[1740153163570,3.4e-07,98213.0,98212.0,0.33727085]
[1740153163772,3.4e-07,98213.0,98212.0,1.55627347]
[1740153164213,3.4e-07,98213.0,98212.0,1.53627347]
[1740153164888,3.4e-07,98213.0,98212.0,1.55627347]
[1740153165064,3.4e-07,98213.0,98212.0,1.54327347]
[1740153165473,3.4e-07,98213.0,98212.0,1.39327347]
[1740153165648,3.4e-07,98213.0,98212.0,0.37879184]
[1740153165848,3.4e-07,98213.0,98212.0,0.52879184]
[1740153166438,3.4e-07,98213.0,98212.0,0.52179184]
[1740153166660,3.4e-07,98213.0,98212.0,0.52879184]
[1740153167060,3.4e-07,98213.0,98212.0,0.10964569]
[1740153167313,3.4e-07,98213.0,98212.0,0.007]
[1740153167632,3.4e-07,98213.0,98212.0,0.014]
[1740153167943,3.4e-07,98213.0,98212.0,0.10964569]
[1740153168188,3.4e-07,98213.0,98212.0,0.10264569]
[1740153168396,3.4e-07,98213.0,98212.0,0.11664569]
[1740153169059,3.4e-07,98213.0,98212.0,0.014]
[1740153169619,3.4e-07,98213.0,98212.0,0.007]
[1740153169817,0.35636934,98213.0,98212.0,0.006]
[1740153170055,0.35636934,98213.0,98212.0,0.011]
[1740153170257,3.4e-07,98213.0,98212.0,0.005]
[1740153170503,3.4e-07,98213.0,98212.0,0.007]
[1740153170915,3.4e-07,98213.0,98212.0,0.014]
[1740153171120,3.4e-07,98213.0,98212.0,0.11664569]
[1740153172337,3.4e-07,98213.0,98212.0,0.11786738]
[1740153172544,3.4e-07,98213.0,98212.0,0.014]
[1740153172681,3.4e-07,98213.0,98212.0,0.11664569]
[1740153173286,3.4e-07,98213.0,98212.0,0.11834309]
[1740153173489,0.00084904,98213.0,98212.0,0.11834309]
[1740153174409,0.15357804,98213.0,98212.0,0.0156974]
[1740153176474,0.00084904,98213.0,98212.0,0.0156974]
[1740153176710,0.00084904,98213.0,98212.0,0.11834309]
[1740153177467,0.00084904,98213.0,98212.0,0.0086974]
[1740153178037,0.00084904,98213.0,98212.0,0.0006974]
[1740153178177,0.00084904,98213.0,98212.0,0.0076974]
[1740153178825,0.00084904,98213.0,98212.0,0.0146974]
[1740153179275,0.00084904,98213.0,98212.0,0.11734309]
[1740153179628,0.00084904,98213.0,98212.0,0.11034309]
[1740153180218,0.00084904,98213.0,98212.0,0.11734309]
[1740153180636,0.15357804,98213.0,98212.0,0.0076974]
[1740153180801,0.15357804,98213.0,98212.0,0.0146974]
[1740153180996,0.00084904,98213.0,98212.0,0.0146974]
[1740153181319,0.00084904,98213.0,98212.0,0.0076974]
[1740153181520,0.15357804,98213.0,98212.0,0.0076974]
[1740153183006,0.30357804,98213.0,98212.0,0.00107681]
[1740153183219,0.15,98212.0,98167.0,0.152799]
[1740153183354,0.30713573,98213.0,98168.0,0.10264569]
[1740153183355,0.203675,98196.0,98168.0,0.10264569]
[1740153183561,0.152768,98188.0,98168.0,0.10264569]
[1740153183765,0.152768,98188.0,98169.0,0.00122216]
[1740153183969,0.15277,98187.0,98170.0,0.10264569]
[1740153184388,0.152771,98186.0,98170.0,0.10264569]
[1740153184601,0.152767,98189.0,98170.0,0.10264569]
[1740153184971,0.203659,98203.0,98171.0,0.00122216]
[1740153185206,0.01594812,98405.0,98172.0,0.10264569]
[1740153185207,0.19563478,98190.0,98172.0,0.10264569]
[1740153185357,0.19563478,98200.0,98172.0,0.10264569]
[1740153185992,0.39927978,98210.0,98172.0,0.10264569]
[1740153186195,0.152769,98188.0,98172.0,0.10264569]
[1740153186438,0.152766,98190.0,98172.0,0.10264569]
[1740153186572,0.19563478,98200.0,98172.0,0.10686785]
[1740153186777,0.15277,98187.0,98173.0,0.00122216]
[1740153187016,0.19563478,98200.0,98174.0,0.10264569]
[1740153187217,0.152775,98184.0,98174.0,0.10264569]
[1740153187391,0.152769,98188.0,98174.0,0.10264569]
[1740153187587,0.00984991,98188.0,98174.0,0.10264569]
[1740153187764,0.203687,98190.0,98174.0,0.10264569]
[1740153187982,0.00978273,98197.0,98177.0,0.01454085]
[1740153188187,0.19563478,98230.0,98179.0,0.01454085]
[1740153188188,0.203647,98210.0,98179.0,0.01454085]
[1740153188399,0.030599,98223.0,98184.0,0.01454085]
[1740153188612,0.0774,98230.0,98186.0,0.16454085]
[1740153188613,0.152739,98207.0,98186.0,0.16454085]
[1740153188827,0.00084904,98213.0,98187.0,0.10386759]
[1740153189034,0.00084904,98213.0,98190.0,0.01454085]
[1740153189258,0.00084904,98213.0,98195.0,0.01454085]
[1740153189479,0.00084904,98213.0,98204.0,0.152742]
[1740153189692,0.00084904,98213.0,98205.0,0.10264569]
[1740153190123,0.00084904,98213.0,98205.0,0.25538569]
[1740153190322,0.00084904,98213.0,98205.0,0.10264569]
[1740153190986,0.00084904,98213.0,98205.0,0.10964569]
[1740153190987,0.152739,98207.0,98205.0,0.10964569]
[1740153191480,0.152739,98207.0,98205.0,0.007]
[1740153191652,0.152735,98209.0,98205.0,0.007]
[1740153191856,0.00084904,98213.0,98206.0,0.10264569]
[1740153193137,0.00084904,98213.0,98206.0,0.10864569]
[1740153193576,0.00084904,98213.0,98206.0,0.11564569]
[1740153194029,0.00084904,98213.0,98209.0,0.152734]
[1740153194245,0.00084904,98213.0,98210.0,0.10264569]
[1740153194468,0.00084904,98213.0,98211.0,0.15395272]
[1740153194677,0.00084904,98213.0,98212.0,0.10264569]
[1740153194903,0.00084904,98213.0,98212.0,0.10386736]
[1740153195335,0.00084904,98213.0,98212.0,0.53669736]
[1740153195545,0.152642,98269.0,98248.0,0.152674]
[1740153195699,0.0096783,98264.0,98248.0,0.40531969]
[1740153195907,0.00052985,98249.0,98248.0,0.40531969]
[1740153196713,0.00052985,98249.0,98248.0,0.41031969]
[1740153197197,0.00052985,98249.0,98248.0,0.41986054]
[1740153198130,0.00052985,98249.0,98248.0,0.42686054]
[1740153198350,8.5e-07,98249.0,98248.0,0.43386054]
[1740153198791,8.5e-07,98249.0,98248.0,0.42686054]
[1740153198934,8.5e-07,98249.0,98248.0,0.43386054]
[1740153199340,0.015694,98267.0,98266.0,0.302646]
[1740153199545,0.01612659,98267.0,98266.0,0.40529169]
[1740153199819,0.0160357,98267.0,98266.0,0.41983254]
[1740153200019,0.01064567,98267.0,98266.0,0.46623254]
[1740153200218,0.01064567,98267.0,98266.0,1.62893254]
[1740153200457,0.01064567,98267.0,98266.0,2.74943254]
[1740153200658,0.01064567,98267.0,98266.0,1.81733254]
[1740153201057,0.01064567,98267.0,98266.0,1.33613254]
[1740153201255,0.01064567,98267.0,98266.0,0.55293254]
[1740153201678,0.08838045,98316.0,98266.0,5.21217554]
[1740153201876,0.05052972,98289.0,98288.0,0.41979854]
[1740153202106,0.05052972,98289.0,98288.0,1.46230225]
[1740153202481,0.08838045,98316.0,98294.0,0.152603]
[1740153202648,0.08838045,98316.0,98311.0,0.302577]
[1740153202855,0.08838045,98316.0,98311.0,1.41970432]
[1740153203057,0.08838045,98316.0,98311.0,1.52148692]
[1740153203289,0.00047,98329.0,98311.0,0.40522269]
[1740153203290,0.00969224,98327.0,98311.0,0.40522269]
[1740153203808,0.00969224,98327.0,98311.0,0.41976354]
[1740153204227,0.00047,98329.0,98311.0,0.41976354]
[1740153204444,0.00047,98329.0,98328.0,0.30255]
[1740153204658,0.0005997,98329.0,98328.0,1.74524949]
[1740153205081,0.0005997,98329.0,98328.0,5.39509034]
[1740153205290,0.0005997,98329.0,98328.0,7.57930805]
[1740153205503,0.0005997,98329.0,98328.0,7.44926547]
[1740153205717,0.0005997,98329.0,98328.0,4.47941905]
[1740153206385,0.000849,98348.0,98347.0,0.152521]
[1740153206598,0.000849,98348.0,98347.0,7.71137905]
[1740153207018,0.000849,98348.0,98347.0,3.70069005]
[1740153207231,0.000849,98348.0,98347.0,1.89186134]
[1740153207446,0.000849,98348.0,98347.0,1.48388917]
[1740153207651,0.000849,98348.0,98347.0,0.25264569]
[1740153207857,0.000849,98348.0,98347.0,1.26712732]
[1740153208076,0.000849,98348.0,98347.0,1.28866817]
[1740153208319,1e-06,98348.0,98347.0,1.92881817]
[1740153208536,1e-06,98348.0,98347.0,1.95828898]
[1740153208744,0.0004,98369.0,98365.0,0.33703385]
[1740153208958,0.01527586,98366.0,98365.0,2.57051698]
[1740153209171,0.01527586,98366.0,98365.0,1.55588827]
[1740153209595,0.01527586,98366.0,98365.0,1.53588827]
[1740153210824,0.01527586,98366.0,98365.0,4.86558827]
[1740153211039,0.01527586,98366.0,98365.0,1.53588827]
[1740153211237,0.01527586,98366.0,98365.0,1.38339527]
[1740153211472,0.01527586,98366.0,98365.0,0.10964569]
[1740153211600,0.01527586,98366.0,98365.0,0.26213869]
[1740153211811,0.01527586,98366.0,98365.0,0.25513869]
[1740153212383,0.01527586,98366.0,98365.0,0.40513869]
[1740153213123,0.01527586,98366.0,98365.0,0.25964569]
[1740153213485,0.01527586,98366.0,98365.0,0.10264569]
[1740153213638,0.01527586,98366.0,98365.0,0.10964569]
[1740153214043,0.01527586,98366.0,98365.0,0.25264569]
[1740153214269,0.01527586,98366.0,98365.0,0.25964569]
[1740153214471,0.01527586,98366.0,98365.0,0.27418654]
[1740153214645,0.01527586,98366.0,98365.0,0.25264569]
[1740153214855,0.01527586,98366.0,98365.0,0.25964569]
[1740153216155,0.01527586,98366.0,98365.0,0.25264569]
[1740153216579,0.01527586,98366.0,98365.0,0.10964569]
[1740153216774,0.01527586,98366.0,98365.0,0.10264569]
[1740153217037,0.01527586,98366.0,98365.0,0.26213869]
[1740153217263,0.01527586,98366.0,98365.0,0.10964569]
[1740153217479,0.01527586,98366.0,98365.0,0.25513869]
[1740153217694,0.01527586,98366.0,98365.0,0.26213869]
[1740153218674,0.01527586,98366.0,98365.0,0.41213869]
[1740153219050,0.01527586,98366.0,98365.0,0.42667954]
[1740153219266,0.01527586,98366.0,98365.0,0.60430774]
[1740153219467,0.01527586,98366.0,98365.0,0.59730774]
[1740153219723,0.01527586,98366.0,98365.0,0.61730774]
[1740153219891,0.01527586,98366.0,98365.0,0.62430774]
[1740153220195,7e-08,98369.0,98368.0,0.33702885]
[1740153220400,0.00012967,98369.0,98368.0,0.43967454]
[1740153220827,0.00012967,98369.0,98368.0,0.41967454]
[1740153221131,0.203218,98417.0,98368.0,0.41967454]
[1740153221132,0.000849,98428.0,98391.0,0.00760058]
[1740153221340,0.000849,98428.0,98408.0,0.41961254]
[1740153221670,0.000849,98428.0,98408.0,0.52129884]
[1740153222675,0.000849,98428.0,98408.0,0.521731]
[1740153223547,0.000849,98428.0,98408.0,0.51419015]
[1740153223753,0.203216,98418.0,98408.0,0.10307785]
[1740153223967,0.000849,98428.0,98408.0,0.10307785]
[1740153223968,0.152825,98409.0,98408.0,0.10307785]
[1740153224166,0.152825,98409.0,98408.0,0.11007785]
[1740153224417,0.152825,98409.0,98408.0,0.00043216]
[1740153224942,0.0004,98409.0,98408.0,0.00743216]
[1740153225494,0.152825,98409.0,98408.0,0.00743216]
[1740153226320,0.152825,98409.0,98408.0,0.00043216]
[1740153226321,1.015325,98409.0,98408.0,0.00043216]
[1740153226523,1.015325,98409.0,98408.0,0.00643216]
[1740153226931,1.015325,98409.0,98408.0,0.00043216]
[1740153227139,1.015325,98409.0,98408.0,0.00143216]
[1740153227586,1.015325,98409.0,98408.0,0.00043216]
[1740153227820,1.015325,98409.0,98408.0,0.00143216]
[1740153229084,1.13797069,98409.0,98408.0,0.00143216]
[1740153229290,1.13797069,98409.0,98408.0,0.00043216]
[1740153230478,0.02,98395.0,98333.0,0.081]
[1740153230702,0.96514569,98394.0,98349.0,0.10264569]
[1740153230901,0.96514569,98394.0,98353.0,0.152511]
[1740153231127,0.8625,98394.0,98361.0,0.08129379]
[1740153231330,1.065764,98394.0,98362.0,0.10386542]
[1740153231527,0.8625,98394.0,98362.0,0.25514269]
[1740153231727,0.203266,98393.0,98362.0,0.10264569]
[1740153232106,0.8625,98394.0,98362.0,0.10264569]
[1740153232449,0.152496,98363.0,98362.0,0.10264569]
[1740153232658,0.203266,98393.0,98362.0,0.10264569]
[1740153232659,0.203294,98380.0,98362.0,0.10264569]
[1740153232879,0.152493,98365.0,98362.0,0.10264569]
[1740153233045,0.8625,98392.0,98362.0,0.10264569]
[1740153233248,0.5354,98391.0,98362.0,0.10264569]
[1740153233471,0.5354,98391.0,98363.0,0.203328]
[1740153233647,0.5354,98391.0,98364.0,0.10264569]
[1740153233856,0.152467,98382.0,98364.0,0.10264569]
[1740153234021,0.3271,98390.0,98364.0,0.10264569]
[1740153234232,0.152489,98368.0,98364.0,0.10264569]
[1740153234430,0.152489,98368.0,98348.0,0.00212759]
[1740153234431,0.02,98389.0,98348.0,0.00212759]
[1740153234630,0.152516,98350.0,98348.0,0.00212759]
[1740153234894,0.8625,98378.0,98353.0,0.15251]
[1740153235086,0.3271,98378.0,98348.0,0.00212759]
[1740153235340,0.3271,98378.0,98354.0,0.10264569]
[1740153235441,0.152489,98368.0,98356.0,0.152506]
[1740153235651,0.152489,98368.0,98354.0,0.10264569]
[1740153235652,0.3271,98378.0,98354.0,0.30599169]
[1740153235859,0.479573,98378.0,98368.0,0.152487]
[1740153236052,0.203299,98377.0,98364.0,0.152494]
[1740153236297,0.3271,98378.0,98365.0,0.10264569]
[1740153236704,0.152477,98376.0,98366.0,0.152491]
[1740153236930,0.530399,98378.0,98366.0,0.152491]
[1740153236931,0.3271,98378.0,98367.0,0.18393948]
[1740153237133,0.2129733,98391.0,98367.0,0.18393948]
[1740153237134,0.5354,98390.0,98368.0,0.004]
[1740153237343,0.203274,98389.0,98354.0,0.15]
[1740153237557,0.203297,98378.0,98355.0,0.10386557]
[1740153237763,0.5451033,98391.0,98355.0,0.10386557]
[1740153237764,0.203276,98389.0,98368.0,0.152487]
[1740153237965,0.152472,98379.0,98369.0,0.10264569]
[1740153238198,0.203272,98390.0,98369.0,0.10264569]
[1740153238407,0.152474,98378.0,98369.0,0.10264569]
[1740153238608,0.5354,98390.0,98369.0,0.10264569]
[1740153238815,0.203285,98384.0,98369.0,0.10264569]
[1740153239014,0.5354,98397.0,98369.0,0.10264569]
[1740153239235,0.203284,98385.0,98370.0,0.00508244]
[1740153239439,0.152477,98375.0,98371.0,0.10264569]
[1740153239620,0.284257,98398.0,98371.0,0.10264569]
[1740153239621,0.5354,98396.0,98371.0,0.10264569]
[1740153239819,0.15247,98380.0,98371.0,0.10264569]
[1740153240038,0.203262,98395.0,98371.0,0.10264569]
[1740153240252,0.54530742,98396.0,98371.0,0.10264569]
[1740153240482,0.203266,98393.0,98372.0,0.15756344]
[1740153240715,0.54530742,98396.0,98373.0,0.10264569]
[1740153240917,0.5354,98395.0,98373.0,0.10264569]
[1740153241126,0.00990742,98396.0,98375.0,0.08129379]
[1740153241362,0.5354,98401.0,98376.0,0.10386531]
[1740153241574,0.5354,98401.0,98392.0,0.15245]
[1740153241837,0.54516855,98401.0,98387.0,0.152458]
[1740153242048,0.54516855,98401.0,98388.0,0.10264569]
[1740153242049,0.00976855,98401.0,98388.0,0.10264569]
[1740153242216,0.152443,98398.0,98388.0,0.10264569]
[1740153242517,0.203251,98401.0,98388.0,0.25510169]
[1740153242726,0.3271,98402.0,98388.0,0.10307828]
[1740153242956,0.152455,98390.0,98388.0,0.10307828]
[1740153243177,0.33681607,98402.0,98388.0,0.00043259]
[1740153243410,0.33681607,98402.0,98389.0,0.00508244]
[1740153243411,0.152454,98390.0,98389.0,0.00508244]
[1740153244685,1.11759969,98390.0,98389.0,0.00508244]
[1740153245268,1.11759969,98390.0,98388.0,0.00043259]
[1740153246567,1.014954,98390.0,98389.0,0.002]
[1740153246775,1.13759969,98390.0,98389.0,0.002]
[1740153247011,0.02,98389.0,98388.0,0.00043259]
[1740153247216,0.98514569,98389.0,98388.0,0.00143259]
[1740153247424,0.152482,98372.0,98371.0,0.001694]
[1740153247633,1.014982,98372.0,98371.0,0.00212707]
[1740153248536,1.11762769,98372.0,98371.0,0.00212707]
[1740153248763,1.13762769,98372.0,98371.0,0.00212707]
[1740153248983,1.22810164,98372.0,98371.0,0.00212707]